fUSD/lending_fUSD_20250123
["ID","MTS","AMOUNT","RATE_DAILY","PERIOD"]
[350150920,1737655843542,-500.0,0.00016611,2]
[350150922,1737655843552,-500.0,0.00016611,2]
[350150923,1737655843560,-500.0,0.00016611,2]
[350150925,1737655843570,-500.0,0.00016611,2]
[350150927,1737655843579,-500.0,0.00016611,2]
[350150928,1737655843588,-500.0,0.00016611,2]
[350150929,1737655843597,-500.0,0.00016611,2]
[350150930,1737655843607,-500.0,0.00016611,2]
[350150931,1737655843616,-500.0,0.00016611,2]
[350150932,1737655843625,-500.0,0.00016611,2]
[350150933,1737655843635,-500.0,0.00016611,2]
[350150934,1737655843644,-500.0,0.00016611,2]
[350150935,1737655843654,-500.0,0.00016611,2]
[350150936,1737655843663,-500.0,0.00016611,2]
[350150937,1737655843673,-500.0,0.00016611,2]
[350150938,1737655843682,-500.0,0.00016611,2]
[350150939,1737655843691,-481.39732467,0.00016611,2]
[350150940,1737655843700,-500.0,0.00016611,2]
[350150941,1737655843708,-500.0,0.00016611,2]
[350150942,1737655843718,-500.0,0.00016611,2]
[350150943,1737655843728,-500.0,0.00016611,2]
[350150944,1737655843739,-500.0,0.00016611,2]
[350150945,1737655843748,-500.0,0.00016611,2]
[350150946,1737655843757,-500.0,0.00016611,2]
[350150947,1737655843767,-500.0,0.00016611,2]
[350150948,1737655843775,-500.0,0.00016611,2]
[350150949,1737655843784,-500.0,0.00016611,2]
[350150950,1737655843792,-500.0,0.00016611,2]
[350150951,1737655843801,-500.0,0.00016611,2]
[350150952,1737655843810,-500.0,0.00016611,2]
[350150953,1737655843819,-500.0,0.00016611,2]
[350150954,1737655843828,-500.0,0.00016611,2]
[350150955,1737655843837,-500.0,0.00016611,2]
[350150956,1737655843846,-500.0,0.00016611,2]
[350150957,1737655843855,-500.0,0.00016611,2]
[350150958,1737655843864,-500.0,0.00016611,2]
[350150959,1737655843873,-500.0,0.00016611,2]
[350150960,1737655843882,-211.83435501,0.00016611,2]
[350150961,1737655843895,-500.0,0.00016611,2]
[350150962,1737655843904,-574.87,0.00016611,2]
[350150963,1737655843914,-500.0,0.00016611,2]
[350150964,1737655843923,-500.0,0.00016611,2]
[350150965,1737655843932,-500.0,0.00016611,2]
[350150966,1737655843941,-500.0,0.00016611,2]
[350150967,1737655843950,-547.0,0.00016611,2]
[350150968,1737655843959,-681.72,0.00016611,2]
[350150969,1737655843969,-901.48,0.00016611,2]
[350150970,1737655843979,-500.0,0.00016611,2]
[350150971,1737655843991,-500.0,0.00016611,2]
[350150972,1737655844000,-500.0,0.00016611,2]
[350150973,1737655844009,-1839.67,0.00016611,2]
[350150974,1737655844019,-500.0,0.00016611,2]
[350150975,1737655844027,-793.04,0.00016611,2]
[350150976,1737655844037,-500.0,0.00016611,2]
[350150977,1737655844048,-500.0,0.00016611,2]
[350150978,1737655844057,-1233.57,0.00016611,2]
[350150979,1737655844067,-1015.48,0.00016611,2]
[350150980,1737655844076,-500.0,0.00016611,2]
[350150981,1737655844085,-500.0,0.00016611,2]
[350150982,1737655844094,-500.0,0.00016611,2]
[350150983,1737655844103,-614.73,0.00016611,2]
[350150984,1737655844113,-662.68,0.00016611,2]
[350150985,1737655844122,-727.81,0.00016611,2]
[350150986,1737655844131,-500.0,0.00016611,2]
[350150987,1737655844141,-500.0,0.00016611,2]
[350150988,1737655844150,-500.0,0.00016611,2]
[350150989,1737655844159,-3552.31,0.00016611,2]
[350150990,1737655844169,-2386.99,0.00016611,2]
[350150991,1737655844178,-500.0,0.00016611,2]
[350150992,1737655844187,-959.12,0.00016611,2]
[350150993,1737655844196,-500.0,0.00016611,2]
[350150994,1737655844205,-652.84,0.00016611,2]
[350150995,1737655844215,-594.04478226,0.00016611,2]
[350150996,1737655844224,-500.0,0.00016611,2]
[350150997,1737655844236,-1743.87,0.00016611,2]
[350150998,1737655844249,-500.0,0.00016611,2]
[350150999,1737655844263,-683.26,0.00016611,2]
[350151000,1737655844272,-770.38,0.00016611,2]
[350151001,1737655844281,-500.0,0.00016611,2]
[350151002,1737655844290,-500.0,0.00016611,2]
[350151003,1737655844301,-614.91,0.00016611,2]
[350151004,1737655844310,-500.0,0.00016611,2]
[350151005,1737655844319,-500.0,0.00016611,2]
[350151006,1737655844329,-500.0,0.00016611,2]
[350151007,1737655844339,-500.0,0.00016611,2]
[350151008,1737655844348,-2694.09,0.00016611,2]
[350151009,1737655844357,-500.0,0.00016611,2]
[350151010,1737655844367,-500.0,0.00016611,2]
[350151011,1737655844376,-1569.71,0.00016611,2]
[350151012,1737655844385,-500.0,0.00016611,2]
[350151013,1737655844394,-500.0,0.00016611,2]
[350151014,1737655844403,-500.0,0.00016611,2]
[350151015,1737655844412,-500.0,0.00016611,2]
[350151016,1737655844422,-500.0,0.00016611,2]
[350151017,1737655844431,-500.0,0.00016611,2]
[350151018,1737655844440,-500.0,0.00016611,2]
[350151019,1737655844450,-1030.71,0.00016611,2]
[350151020,1737655844459,-500.0,0.00016611,2]
[350151021,1737655844468,-500.0,0.00016611,2]
[350151022,1737655844477,-500.0,0.00016611,2]
[350151023,1737655844489,-500.0,0.00016611,2]
[350151024,1737655844498,-500.0,0.00016611,2]
[350151025,1737655844507,-500.0,0.00016611,2]
[350151026,1737655844518,-500.0,0.00016611,2]
[350151027,1737655844528,-500.0,0.00016611,2]
[350151028,1737655844538,-500.0,0.00016611,2]
[350151029,1737655844548,-500.0,0.00016611,2]
[350151030,1737655844558,-586.52,0.00016611,2]
[350151031,1737655844567,-500.0,0.00016611,2]
[350151032,1737655844575,-500.0,0.00016611,2]
[350151033,1737655844585,-594.39,0.00016611,2]
[350151034,1737655844728,-500.0,0.00016611,2]
[350151035,1737655844739,-500.0,0.00016611,2]
[350151036,1737655844748,-500.0,0.00016611,2]
[350151037,1737655844757,-500.0,0.00016611,2]
[350151038,1737655844766,-623.93,0.00016611,2]
[350151039,1737655844775,-500.0,0.00016611,2]
[350151040,1737655844784,-500.0,0.00016611,2]
[350151041,1737655844793,-319.51823973,0.00016612,2]
[350151042,1737655844802,-5552.5729,0.00016612,2]
[350151043,1737655844812,-4780.7054,0.00016612,2]
[350151044,1737655844821,-1127.30404637,0.00016613,2]
[350151045,1737655844831,-12069.79616055,0.00016614,2]
[350151046,1737655844840,-12224.9298274,0.00016614,2]
[350151047,1737655844849,-222.50547067,0.00016619,2]
[350151048,1737655844858,-1619.92171232,0.00016619,2]
[350151049,1737655844868,-2955.17991611,0.0001662,2]
[350151050,1737655844877,-200.0,0.00016621,2]
[350151051,1737655844886,-1097.92016641,0.00016621,2]
[350151052,1737655844894,-9550.06301299,0.00016623,2]
[350151053,1737655844902,-200.0,0.00016623,2]
[350151054,1737655844911,-1668.60095137,0.00016626,2]
[350151055,1737655844921,-337.6714025,0.00016627,2]
[350151056,1737655844931,-2350.6251216,0.00016631,2]
[350151057,1737655844940,-749.72754135,0.00016632,2]
[350151058,1737655844950,-319.51823973,0.00016634,2]
[350151059,1737655844959,-1668.60095137,0.00016634,2]
[350151060,1737655844968,-200.0,0.00016635,2]
[350151061,1737655844977,-2350.6251216,0.00016637,2]
[350151062,1737655844987,-749.72754135,0.00016639,2]
[350151063,1737655844997,-1127.30404637,0.00016639,2]
[350151064,1737655845006,-2350.6251216,0.0001664,2]
[350151065,1737655845015,-337.6714025,0.00016641,2]
[350151066,1737655845025,-200.0,0.00016642,2]
[350151067,1737655845034,-1668.60095137,0.00016642,2]
[350151068,1737655845044,-6435.9103642,0.00016642,2]
[350151069,1737655845076,-3114.15264879,0.00016642,2]
[350151070,1737655845085,-12224.9298274,0.00016645,2]
[350151071,1737655845095,-1663.8664743,0.00016645,2]
[350151072,1737655845104,-749.72754135,0.00016648,2]
[350151073,1737655845113,-1197.32200816,0.00016649,2]
[350151074,1737655845139,-422.59970416,0.00016649,2]
[350151075,1737655845148,-1127.30404637,0.0001665,2]
[350151076,1737655845157,-2598.81694141,0.00016676,2]
[350151077,1737655845167,-22363.91630806,0.000167,2]
[350151078,1737655845274,-500.0,0.00016611,2]
[350151079,1737655845284,-560.9941555,0.000167,2]
[350151080,1737655845571,-500.0,0.00016438,2]
[350151081,1737655845580,-5694.86591526,0.000167,2]
[350151084,1737655845920,-182.19228816,0.00016438,2]
[350151085,1737655845930,-2062.07126527,0.000167,2]
[350151086,1737655845941,-1303.400427,0.000167,2]
[350151087,1737655845975,-818.00849434,0.000167,2]
[350151088,1737655845987,-2359.27573041,0.000167,2]
[350151089,1737655846089,-389.07968882,0.000167,2]
[350151090,1737655846101,-14599.8372567,0.000167,2]
[350151091,1737655846110,-700.0,0.000167,6]
[350151092,1737655846119,-941.04,0.0001671,2]
[350151093,1737655846128,-808.23,0.0001671,2]
[350151094,1737655846136,-1639.77,0.0001671,2]
[350151095,1737655846145,-3313.67,0.0001671,2]
[350151096,1737655846154,-683.37,0.0001671,2]
[350151097,1737655846164,-609.5,0.0001671,2]
[350151098,1737655846173,-1245.97,0.0001671,2]
[350151099,1737655846183,-500.0,0.0001671,2]
[350151100,1737655846192,-527.07,0.0001671,2]
[350151101,1737655846201,-846.61,0.0001671,2]
[350151102,1737655846210,-972.03,0.0001671,2]
[350151103,1737655846219,-500.0,0.0001671,2]
[350151104,1737655846228,-1000.0,0.0001671,2]
[350151105,1737655846238,-877.36,0.0001671,2]
[350151106,1737655846248,-500.0,0.0001671,2]
[350151107,1737655846261,-1671.42,0.0001671,2]
[350151108,1737655846270,-1325.41,0.0001671,2]
[350151109,1737655846279,-500.0,0.0001671,2]
[350151110,1737655846289,-500.0,0.0001671,2]
[350151111,1737655846298,-500.0,0.00016711,2]
[350151112,1737655846308,-337.4616892,0.00016712,2]
[350151113,1737655846316,-590984.73065917,0.00016712,2]
[350151125,1737655922240,-411.0781,0.00015519,2]
[350151126,1737655922263,-526.17,0.00015879,2]
[350151127,1737655922288,-507.27,0.00015899,2]
[350151128,1737655922310,-374.4,0.00015899,2]
[350151129,1737655922335,-161.88,0.00015944,2]
[350151130,1737655922358,-2953.2019,0.00016338,2]
[350151131,1737655968518,153.6,0.000219,31]
[350151132,1737655968579,153.6,0.000219,31]
[350151133,1737655968639,153.6,0.000219,31]
[350151134,1737655968703,153.6,0.000219,31]
[350151135,1737655968754,153.6,0.000219,31]
[350151136,1737655968816,153.6,0.000219,31]
[350151137,1737655968877,153.6,0.000219,31]
[350151138,1737655968938,153.6,0.000219,31]
[350151139,1737655969030,153.6,0.000219,31]
[350151140,1737655969100,153.6,0.000219,31]
[350151141,1737655969149,153.6,0.000219,31]
[350151142,1737655969190,153.6,0.000219,31]
[350151143,1737655969238,153.6,0.000219,31]
[350151144,1737655969303,153.6,0.000219,31]
[350151146,1737656067619,153.53,0.00016658,30]
[350151147,1737656067842,153.53,0.00020164,30]
[350151149,1737656576595,153.62,0.000219,31]
[350151150,1737656576650,153.62,0.000219,31]
[350151151,1737656576712,153.62,0.000219,31]
[350151152,1737656576770,153.62,0.000219,31]
[350151153,1737656576832,153.62,0.000219,31]
[350151154,1737656576895,153.62,0.000219,31]
[350151155,1737656576952,153.62,0.000219,31]
[350151177,1737656954766,153.53,0.00016658,30]
[350151178,1737656955071,153.53,0.00020749,30]
[350151204,1737657032173,-301.71615094,9e-05,3]
[350151205,1737657032183,-150.0,9.999e-05,2]
[350151206,1737657032193,-338.20319813,9.999e-05,2]
[350151207,1737657032202,-3494.83866844,0.0001,2]
[350151208,1737657032228,-8163.41488018,0.0001,2]
[350151209,1737657032239,-130520.43034356,0.0001,2]
[350151210,1737657032250,-51109.99487146,0.0001,2]
[350151211,1737657032284,-10155.02011675,0.0001,2]
[350151212,1737657032295,-426.27575759,0.0001,2]
[350151213,1737657032306,-982.43337259,0.0001,2]
[350151214,1737657032340,-6981.6331799,0.0001,2]
[350151215,1737657032396,-1101.0,0.0001,2]
[350151216,1737657032408,-2754.10569044,0.0001,2]
[350151217,1737657032453,-44232.8504172,0.0001,2]
[350151218,1737657032462,-154.74,0.00010137,2]
[350151219,1737657032472,-218.66,0.00010959,2]
[350151220,1737657032482,-182.22,0.00010959,2]
[350151221,1737657032491,-151.85,0.00010959,2]
[350151222,1737657032500,-255.0,0.00010999,2]
[350151223,1737657032510,-17884.74963338,0.00011,2]
[350151224,1737657032520,-42741.03810872,0.00012,2]
[350151225,1737657032535,-625.91901,0.00012,2]
[350151226,1737657032562,-1880.79730344,0.00012,2]
[350151227,1737657032574,-30579.56506233,0.00012,2]
[350151228,1737657032584,-167.0,0.00012099,2]
[350151229,1737657032593,-539.6973282,0.00013412,2]
[350151230,1737657032603,-765.66,0.00013512,2]
[350151231,1737657032618,-310.12,0.000137,2]
[350151232,1737657032627,-1643.33317743,0.000139,2]
[350151233,1737657032636,-1643.33317738,0.000139,2]
[350151234,1737657032646,-1643.33317738,0.000139,2]
[350151235,1737657032657,-1643.33317738,0.000139,2]
[350151236,1737657032667,-1643.33317738,0.000139,2]
[350151237,1737657032677,-1643.33317738,0.000139,2]
[350151238,1737657032687,-1643.33317738,0.000139,2]
[350151240,1737657032697,-1643.33317738,0.000139,2]
[350151242,1737657032707,-1643.33317738,0.00013934,2]
[350151244,1737657032716,-1643.33317738,0.00014314,2]
[350151246,1737657032726,-1000.0,0.00014456,2]
[350151248,1737657032736,-200.0,0.00014508,2]
[350151250,1737657032745,-4101.38,0.00014626,2]
[350151252,1737657032754,-1643.33317738,0.00014693,2]
[350151254,1737657032763,-350.69,0.00014709,2]
[350151256,1737657032773,-23900.0,0.00014755,2]
[350151258,1737657032782,-250.0,0.00014784,2]
[350151260,1737657032791,-164.65,0.0001483,2]
[350151262,1737657032801,-550.0,0.00015,2]
[350151264,1737657032810,-1643.33317738,0.00015072,2]
[350151266,1737657032819,-681.48,0.00015089,2]
[350151269,1737657032830,-1287.91,0.00015137,2]
[350151272,1737657032839,-250.0,0.00015143,2]
[350151275,1737657032849,-3348.28,0.00015182,2]
[350151278,1737657032858,-405.74,0.00015409,2]
[350151281,1737657032867,-217.21,0.00015409,2]
[350151283,1737657032876,-250.0,0.00015438,2]
[350151286,1737657032886,-1643.33317738,0.00015452,2]
[350151289,1737657032895,-2347.03,0.00015464,2]
[350151292,1737657032904,-703.38,0.00015524,2]
[350151295,1737657032913,-1257.52,0.00015595,2]
[350151297,1737657032923,-193.37,0.00015724,2]
[350151299,1737657032932,-7378.05,0.00015755,2]
[350151301,1737657032941,-765.66,0.00015776,2]
[350151303,1737657032950,-33637.0,0.00015816,2]
[350151305,1737657032959,-1643.33317738,0.00015831,2]
[350151307,1737657032969,-1671.86,0.00015841,2]
[350151309,1737657032979,-400.0,0.000159,5]
[350151311,1737657032988,-44.66363043,0.00015978,2]
[350151314,1737657033004,-382.38636957,0.00015978,2]
[350151316,1737657033014,-298.1,0.00015978,2]
[350151318,1737657033024,-222.82764763,0.00015978,2]
[350151320,1737657033036,-74.91235237,0.00015978,2]
[350151322,1737657033046,-195.95725396,0.0001607,2]
[350151325,1737657033058,-1760.76274604,0.0001607,2]
[350151326,1737657033067,-285.53557852,0.0001607,2]
[350151495,1737657038261,-696.74442148,0.0001607,2]
[350151496,1737657038270,-982.28,0.0001607,2]
[350151497,1737657038280,-982.28,0.0001607,2]
[350151498,1737657038289,-982.28,0.0001607,2]
[350151499,1737657038299,-1643.33317738,0.0001621,2]
[350151500,1737657038309,-169.12943616,0.00016238,2]
[350151501,1737657038318,-324.98019831,0.00016238,2]
[350151502,1737657038333,-1792.45777021,0.00016238,2]
[350151503,1737657038343,-1281.6392579,0.00016238,2]
[350151504,1737657038352,-150.83,0.00016247,2]
[350151505,1737657038361,-1000.0,0.00016262,2]
[350151506,1737657038371,-176.01,0.00016282,2]
[350151507,1737657038380,-310.12,0.0001629,2]
[350151508,1737657038390,-48059.24371998,0.000163,4]
[350151509,1737657038402,-316073.28655239,0.000163,4]
[350151510,1737657038413,-2596.15317897,0.000163,4]
[350151524,1737657040308,-346.02250741,0.000163,4]
[350151525,1737657040369,-4839.2666496,0.000163,4]
[350151526,1737657040381,-333.75861994,0.000163,4]
[350151527,1737657040435,-6029.48000006,0.000163,4]
[350151528,1737657040447,-76927.93755686,0.000163,4]
[350151529,1737657040495,-16156.70124526,0.000163,4]
[350151530,1737657040561,-573.32806682,0.000163,4]
[350151531,1737657040573,-11118.50984221,0.000163,4]
[350151532,1737657040624,-609.5,0.000163,4]
[350151533,1737657040685,-543.11291299,0.000163,4]
[350151534,1737657040700,-21219.0543098,0.000163,4]
[350151535,1737657040712,-316.64,0.000163,4]
[350151570,1737657043206,-31674.60331601,0.000163,4]
[350151571,1737657043317,-257.71799736,0.000163,4]
[350151572,1737657043329,-4602.88853632,0.000163,4]
[350151573,1737657043448,-574.85058319,0.000163,4]
[350151693,1737657046292,-10396.26250825,0.000163,4]
[350151694,1737657046303,-32807.21931368,0.000163,4]
[350151695,1737657046312,-2949.39214107,0.00016338,2]
[350151696,1737657046322,-396.0576,0.00016338,2]
[350151697,1737657046331,-2037.8867,0.00016338,2]
[350151698,1737657046341,-1281.63925789,0.00016341,2]
[350151699,1737657046350,-831.9332372,0.00016377,2]
[350151700,1737657046359,-759.26,0.00016428,3]
[350151701,1737657046369,-264.44154213,0.00016429,7]
[350151702,1737657046378,-566.53378494,0.00016438,2]
[350151703,1737657046388,-500.0,0.00016438,2]
[350151704,1737657046397,-503.95339738,0.00016438,2]
[350151705,1737657046406,-398.49748272,0.00016438,2]
[350151706,1737657046415,-500.50446508,0.00016438,2]
[350151707,1737657046425,-507.71379526,0.00016438,2]
[350151708,1737657046434,-502.25004239,0.00016438,2]
[350151709,1737657046443,-513.00630481,0.00016438,2]
[350151710,1737657046452,-300.0,0.00016438,2]
[350151711,1737657046462,-580.53368935,0.00016438,2]
[350151712,1737657046472,-502.10641252,0.00016438,2]
[350151713,1737657046483,-500.0,0.00016438,2]
[350151714,1737657046493,-500.0,0.00016438,2]
[350151715,1737657046503,-501.74191315,0.00016438,2]
[350151716,1737657046513,-532.57351253,0.00016438,2]
[350151717,1737657046522,-502.6822115,0.00016438,2]
[350151718,1737657046532,-500.0,0.00016438,2]
[350151719,1737657046544,-500.0,0.00016438,2]
[350151721,1737657046553,-500.0,0.00016438,2]
[350151723,1737657046563,-500.0,0.00016438,2]
[350151725,1737657046572,-500.0,0.00016438,2]
[350151727,1737657046581,-500.0,0.00016438,2]
[350151729,1737657046590,-500.0,0.00016438,2]
[350151731,1737657046600,-500.0,0.00016438,2]
[350151733,1737657046609,-500.0,0.00016438,2]
[350151735,1737657046620,-500.0,0.00016438,2]
[350151736,1737657046630,-500.0,0.00016438,2]
[350151737,1737657046639,-514.10960007,0.00016438,2]
[350151738,1737657046649,-500.0,0.00016438,2]
[350151739,1737657046658,-581.44357324,0.00016438,2]
[350151740,1737657046669,-500.0,0.00016438,2]
[350151741,1737657046678,-511.25948275,0.00016438,2]
[350151742,1737657046687,-500.0,0.00016438,2]
[350151743,1737657046698,-500.0,0.00016438,2]
[350151744,1737657046707,-500.0,0.00016438,2]
[350151745,1737657046717,-500.0,0.00016438,2]
[350151746,1737657046726,-500.0,0.00016438,2]
[350151747,1737657046736,-500.0,0.00016438,2]
[350151748,1737657046746,-500.0,0.00016438,2]
[350151749,1737657046755,-500.0,0.00016438,2]
[350151750,1737657046764,-500.0,0.00016438,2]
[350151751,1737657046774,-484.09825039,0.00016438,2]
[350151752,1737657046784,-500.0,0.00016438,2]
[350151753,1737657046795,-225.13587772,0.00016438,2]
[350151754,1737657046805,-500.0,0.00016438,2]
[350151755,1737657046815,-500.0,0.00016438,2]
[350151756,1737657046824,-500.0,0.00016438,2]
[350151757,1737657046833,-500.0,0.00016438,2]
[350151758,1737657046843,-500.0,0.00016438,2]
[350151759,1737657046852,-500.0,0.00016438,2]
[350151760,1737657046861,-500.0,0.00016438,2]
[350151761,1737657046870,-500.0,0.00016438,2]
[350151762,1737657046880,-500.0,0.00016438,2]
[350151763,1737657046889,-500.0,0.00016438,2]
[350151764,1737657046899,-500.0,0.00016438,2]
[350151765,1737657046908,-500.0,0.00016438,2]
[350151766,1737657046918,-500.0,0.00016438,2]
[350151767,1737657046929,-500.0,0.00016438,2]
[350151768,1737657046939,-500.0,0.00016438,2]
[350151769,1737657046948,-500.0,0.00016438,2]
[350151770,1737657046958,-500.0,0.00016438,2]
[350151771,1737657046967,-500.0,0.00016438,2]
[350151772,1737657046976,-500.0,0.00016438,2]
[350151773,1737657046986,-500.0,0.00016438,2]
[350151774,1737657046995,-500.0,0.00016438,2]
[350151775,1737657047006,-500.0,0.00016438,2]
[350151776,1737657047016,-500.0,0.00016438,2]
[350151777,1737657047026,-500.0,0.00016438,2]
[350151778,1737657047037,-500.0,0.00016438,2]
[350151779,1737657047046,-500.0,0.00016438,2]
[350151780,1737657047055,-500.0,0.00016438,2]
[350151781,1737657047066,-500.0,0.00016438,2]
[350151782,1737657047075,-500.0,0.00016438,2]
[350151783,1737657047085,-500.0,0.00016438,2]
[350151784,1737657047094,-500.0,0.00016438,2]
[350151785,1737657047104,-500.0,0.00016438,2]
[350151786,1737657047114,-500.0,0.00016438,2]
[350151787,1737657047123,-554.91,0.00016438,2]
[350151788,1737657047133,-500.0,0.00016438,2]
[350151789,1737657047142,-500.0,0.00016438,2]
[350151790,1737657047151,-500.0,0.00016438,2]
[350151791,1737657047161,-500.0,0.00016438,2]
[350151792,1737657047170,-500.0,0.00016438,2]
[350151793,1737657047180,-500.0,0.00016438,2]
[350151794,1737657047190,-500.0,0.00016438,2]
[350151795,1737657047199,-500.0,0.00016438,2]
[350151796,1737657047208,-500.0,0.00016438,2]
[350151797,1737657047217,-500.0,0.00016438,2]
[350151798,1737657047227,-500.0,0.00016438,2]
[350151799,1737657047236,-500.0,0.00016438,2]
[350151800,1737657047246,-500.0,0.00016438,2]
[350151801,1737657047256,-500.0,0.00016438,2]
[350151802,1737657047265,-500.0,0.00016438,2]
[350151803,1737657047275,-500.0,0.00016438,2]
[350151804,1737657047284,-500.0,0.00016438,2]
[350151805,1737657047294,-500.0,0.00016438,2]
[350151806,1737657047304,-500.0,0.00016438,2]
[350151807,1737657047315,-500.0,0.00016438,2]
[350151808,1737657047325,-500.0,0.00016438,2]
[350151809,1737657047335,-500.0,0.00016438,2]
[350151810,1737657047345,-500.0,0.00016438,2]
[350151811,1737657047355,-500.0,0.00016438,2]
[350151812,1737657047364,-500.0,0.00016438,2]
[350151813,1737657047374,-500.0,0.00016438,2]
[350151814,1737657047383,-500.0,0.00016438,2]
[350151815,1737657047392,-500.0,0.00016438,2]
[350151816,1737657047401,-546.77,0.00016438,2]
[350151817,1737657047411,-500.0,0.00016438,2]
[350151818,1737657047420,-569.13,0.00016438,2]
[350151819,1737657047431,-754.17,0.00016438,2]
[350151820,1737657047440,-500.0,0.00016438,2]
[350151821,1737657047449,-500.0,0.00016438,2]
[350151822,1737657047459,-500.0,0.00016438,2]
[350151823,1737657047468,-500.0,0.00016438,2]
[350151824,1737657047477,-500.0,0.00016438,2]
[350151825,1737657047486,-511.242651,0.00016438,2]
[350151826,1737657047496,-500.0,0.00016438,2]
[350151827,1737657047506,-500.0,0.00016438,2]
[350151828,1737657047516,-500.0,0.00016438,2]
[350151829,1737657047525,-799.23,0.00016438,2]
[350151830,1737657047537,-500.0,0.00016438,2]
[350151831,1737657047546,-500.0,0.00016438,2]
[350151832,1737657047557,-1941.38,0.00016438,2]
[350151833,1737657047567,-500.0,0.00016438,2]
[350151834,1737657047576,-836.05,0.00016438,2]
[350151835,1737657047586,-1439.5,0.00016438,2]
[350151836,1737657047595,-1131.26,0.00016438,2]
[350151837,1737657047605,-811.07,0.00016438,2]
[350151838,1737657047615,-500.0,0.00016438,2]
[350151839,1737657047629,-500.0,0.00016438,2]
[350151840,1737657047638,-791.16,0.00016438,2]
[350151841,1737657047648,-825.26,0.00016438,2]
[350151842,1737657047659,-1726.14,0.00016438,2]
[350151843,1737657047669,-1480.73,0.00016438,2]
[350151844,1737657047679,-732.93,0.00016438,2]
[350151845,1737657047689,-539.09,0.00016438,2]
[350151846,1737657047867,-500.0,0.00016438,2]
[350151847,1737657047878,-1550.76,0.00016438,2]
[350151848,1737657047888,-405.06521834,0.00016438,2]
[350151849,1737657047898,-500.0,0.00016438,2]
[350151850,1737657047908,-500.0,0.00016438,2]
[350151851,1737657047918,-500.0,0.00016438,2]
[350151852,1737657047927,-500.0,0.00016438,2]
[350151853,1737657047937,-500.0,0.00016438,2]
[350151854,1737657047946,-1250.17,0.00016438,2]
[350151855,1737657047956,-1977.99,0.00016438,2]
[350151856,1737657047965,-500.0,0.00016438,2]
[350151857,1737657047974,-500.0,0.00016438,2]
[350151858,1737657047984,-500.0,0.00016438,2]
[350151859,1737657047993,-500.0,0.00016438,2]
[350151860,1737657048003,-500.0,0.00016438,2]
[350151861,1737657048013,-500.0,0.00016438,2]
[350151862,1737657048022,-216.12532814,0.00016438,2]
[350151863,1737657048032,-500.0,0.00016438,2]
[350151864,1737657048042,-500.0,0.00016438,2]
[350151865,1737657048052,-350.80832799,0.00016438,2]
[350151866,1737657048062,-500.0,0.00016438,2]
[350151867,1737657048072,-500.0,0.00016438,2]
[350151868,1737657048082,-500.0,0.00016438,2]
[350151869,1737657048092,-500.0,0.00016438,2]
[350151870,1737657048101,-971.08,0.00016438,2]
[350151871,1737657048111,-500.0,0.00016438,2]
[350151872,1737657048121,-500.0,0.00016438,2]
[350151873,1737657048130,-500.0,0.00016438,2]
[350151874,1737657048140,-500.0,0.00016438,2]